fUST/lending_fUST_20250507
["ID","MTS","AMOUNT","RATE_DAILY","PERIOD"]
[360102481,1746550248454,-160.0,0.000192,2]
[360102483,1746550248464,-160.0,0.000192,2]
[360102485,1746550248474,-160.0,0.000192,2]
[360102486,1746550248484,-313.9004746,0.000192,2]
[360102488,1746550248495,-160.0,0.000192,2]
[360102490,1746550248504,-160.0,0.000192,2]
[360102492,1746550248513,-1375.89623483,0.00019231,2]
[360102494,1746550248524,-156.587,0.00019233,2]
[360102496,1746550248533,-200.0,0.00019251,4]
[360102498,1746550248543,-2027.16,0.0001926,3]
[360102500,1746550248552,-1013.58,0.0001926,3]
[360102502,1746550248562,-506.78,0.0001926,3]
[360102504,1746550248572,-162.380719,0.00019288,2]
[360102506,1746550248581,-151.0,0.000193,2]
[360102508,1746550248591,-151.0,0.00019329,2]
[360102510,1746550248601,-151.0,0.00019329,2]
[360102512,1746550248610,-151.0,0.00019329,2]
[360102514,1746550248619,-151.0,0.00019329,2]
[360102516,1746550248629,-153.140766,0.00019329,2]
[360102517,1746550248637,-151.0,0.00019329,2]
[360102518,1746550248647,-151.0,0.00019329,2]
[360102519,1746550248656,-151.791899,0.00019329,2]
[360102520,1746550248666,-1877.288413,0.00019329,2]
[360102521,1746550248675,-1877.288413,0.00019329,2]
[360102522,1746550248685,-202.6,0.00019329,2]
[360102523,1746550248695,-256.226979,0.00019329,2]
[360102524,1746550248704,-151.0,0.00019329,2]
[360102525,1746550248714,-151.0,0.00019329,2]
[360102526,1746550248724,-151.0,0.00019329,2]
[360102527,1746550248733,-12610.21250885,0.00019329,3]
[360102528,1746550248743,-841.96455721,0.00019329,3]
[360102529,1746550248752,-160.0,0.00019329,3]
[360102530,1746550248762,-313.9004746,0.00019329,3]
[360102531,1746550248772,-212.03916285,0.00019329,3]
[360102532,1746550248782,-100000.0,0.00019329,2]
[360102533,1746550248795,-168.3888056,0.00019343,2]
[360102534,1746550248805,-174.61919141,0.00019398,2]
[360102535,1746550248815,-179188.04363726,0.00019449,2]
[360102536,1746550248826,-151.0,0.00019449,2]
[360102537,1746550248836,-151.000003,0.00019449,2]
[360102538,1746550248847,-151.0,0.00019449,2]
[360102539,1746550248858,-151.0,0.00019449,2]
[360102540,1746550248870,-151.0,0.00019449,2]
[360102542,1746550248880,-176.979047,0.00019449,2]
[360102543,1746550248890,-176.979047,0.00019449,2]
[360102545,1746550248900,-265.031267,0.00019449,2]
[360102547,1746550248910,-265.031267,0.00019449,2]
[360102549,1746550248919,-151.0,0.00019449,2]
[360102551,1746550248928,-227.75999,0.00019449,2]
[360102553,1746550248938,-227.75999,0.00019449,2]
[360102555,1746550248947,-151.0,0.00019449,2]
[360102557,1746550248957,-151.0,0.00019449,2]
[360102559,1746550248967,-174.646678,0.00019449,2]
[360102561,1746550248976,-174.646678,0.00019449,2]
[360102563,1746550248986,-151.0,0.00019449,2]
[360102565,1746550248995,-151.0,0.00019449,2]
[360102567,1746550249004,-372.762009,0.00019449,2]
[360102569,1746550249013,-372.762009,0.00019449,2]
[360102571,1746550249023,-151.0,0.00019449,2]
[360102573,1746550249032,-151.0,0.00019449,2]
[360102575,1746550249041,-151.0,0.00019449,2]
[360102577,1746550249052,-120769.40556013,0.00019451,3]
[360102579,1746550249062,-151.0,0.00019451,2]
[360102581,1746550249071,-151.0,0.00019451,2]
[360102583,1746550249082,-156.231199,0.00019451,2]
[360102585,1746550249091,-1877.288413,0.00019451,2]
[360102587,1746550249101,-1877.288413,0.00019451,2]
[360102589,1746550249111,-281766.98816083,0.00019451,2]
[360102591,1746550249121,-12610.21250885,0.00019452,3]
[360102593,1746550249131,-841.96455721,0.00019452,3]
[360102595,1746550249141,-160.0,0.00019452,3]
[360102597,1746550249151,-313.9004746,0.00019452,3]
[360102599,1746550249161,-212.03916285,0.00019452,3]
[360102601,1746550249171,-151.0,0.00019452,2]
[360102603,1746550249181,-151.0,0.00019452,2]
[360102605,1746550249190,-151.0,0.00019452,2]
[360102607,1746550249199,-151.0,0.00019452,2]
[360102609,1746550249209,-151.0,0.00019452,2]
[360102611,1746550249218,-151.0,0.00019452,2]
[360102613,1746550249228,-151.0,0.00019452,2]
[360102615,1746550249237,-151.0,0.00019452,2]
[360102617,1746550249247,-151.0,0.00019452,2]
[360102619,1746550249257,-151.0,0.00019452,2]
[360102621,1746550249268,-151.0,0.00019452,2]
[360102623,1746550249278,-151.0,0.00019452,2]
[360102625,1746550249287,-151.0,0.00019452,2]
[360102627,1746550249297,-208.729021,0.00019452,2]
[360102629,1746550249306,-151.0,0.00019452,2]
[360102631,1746550249316,-151.0,0.00019452,2]
[360102633,1746550249326,-151.0,0.00019452,2]
[360102635,1746550249336,-151.0,0.00019452,2]
[360102637,1746550249347,-151.0,0.00019452,2]
[360102639,1746550249358,-151.0,0.00019452,2]
[360102641,1746550249367,-232.029026,0.00019452,2]
[360102643,1746550249378,-350.613043,0.00019452,2]
[360102645,1746550249388,-350.613043,0.00019452,2]
[360102647,1746550249398,-350.613043,0.00019452,2]
[360102649,1746550249408,-350.613043,0.00019452,2]
[360102651,1746550249417,-153.201412,0.00019452,2]
[360102653,1746550249426,-400.0,0.00019452,2]
[360102655,1746550249436,-151.0,0.00019452,2]
[360102657,1746550249446,-151.0,0.00019452,2]
[360102659,1746550249456,-505.86301473,0.00019452,2]
[360102661,1746550249466,-500.0,0.00019452,2]
[360102663,1746550249476,-151.0,0.00019452,2]
[360102665,1746550249487,-500.0,0.00019452,2]
[360102667,1746550249497,-151.0,0.00019452,2]
[360102669,1746550249506,-400.0,0.00019452,2]
[360102671,1746550249516,-151.0,0.00019452,2]
[360102673,1746550249528,-400.0,0.00019452,2]
[360102675,1746550249538,-400.0,0.00019452,2]
[360102677,1746550249548,-400.0,0.00019452,2]
[360102679,1746550249558,-400.0,0.00019452,2]
[360102681,1746550249568,-400.0,0.00019452,2]
[360102683,1746550249581,-449.36,0.00019452,2]
[360102685,1746550249591,-294.469687,0.00019452,2]
[360102686,1746550249610,-400.0,0.00019452,2]
[360102689,1746550249621,-326.7264839,0.00019452,2]
[360102691,1746550249635,-501.77136801,0.00019452,2]
[360102692,1746550249645,-400.0,0.00019452,2]
[360102694,1746550249654,-400.0,0.00019452,2]
[360102696,1746550249665,-400.0,0.00019452,2]
[360102698,1746550249675,-400.0,0.00019452,2]
[360102700,1746550249685,-400.0,0.00019452,2]
[360102702,1746550249695,-400.0,0.00019452,2]
[360102704,1746550249704,-503.64168324,0.00019452,2]
[360102706,1746550249714,-400.0,0.00019452,2]
[360102708,1746550249724,-258.987478,0.00019452,2]
[360102710,1746550249734,-400.0,0.00019452,2]
[360102712,1746550249744,-258.987478,0.00019452,2]
[360102714,1746550249753,-400.0,0.00019452,2]
[360102716,1746550249763,-151.0,0.00019452,2]
[360102718,1746550249773,-400.0,0.00019452,2]
[360102721,1746550249784,-400.0,0.00019452,2]
[360102722,1746550249798,-400.0,0.00019452,2]
[360102725,1746550249808,-400.0,0.00019452,2]
[360102727,1746550249817,-400.0,0.00019452,2]
[360102729,1746550249827,-400.0,0.00019452,2]
[360102731,1746550249836,-400.0,0.00019452,2]
[360102733,1746550249851,-500.0,0.00019452,2]
[360102735,1746550249861,-502.65057498,0.00019452,2]
[360102737,1746550249871,-400.0,0.00019452,2]
[360102739,1746550249881,-400.0,0.00019452,2]
[360102741,1746550249891,-400.0,0.00019452,2]
[360102743,1746550249901,-402.77319095,0.00019452,2]
[360102757,1746550250020,-400.0,0.00019452,2]
[360102759,1746550250030,-400.0,0.00019452,2]
[360102761,1746550250040,-403.32021454,0.00019452,2]
[360102763,1746550250049,-401.33723472,0.00019452,2]
[360102765,1746550250058,-400.0,0.00019452,2]
[360102767,1746550250068,-400.0,0.00019452,2]
[360102769,1746550250078,-400.0,0.00019452,2]
[360102771,1746550250087,-400.0,0.00019452,2]
[360102773,1746550250098,-400.0,0.00019452,2]
[360102775,1746550250108,-400.0,0.00019452,2]
[360102777,1746550250117,-400.0,0.00019452,2]
[360102779,1746550250126,-400.0,0.00019452,2]
[360102781,1746550250135,-307.06732803,0.00019452,2]
[360102783,1746550250145,-400.0,0.00019452,2]
[360102785,1746550250154,-400.0,0.00019452,2]
[360102787,1746550250164,-400.0,0.00019452,2]
[360102789,1746550250176,-456.41521488,0.00019452,2]
[360102791,1746550250186,-400.0,0.00019452,2]
[360102793,1746550250195,-400.0,0.00019452,2]
[360102795,1746550250205,-214.02295616,0.00019452,2]
[360102797,1746550250214,-400.0,0.00019452,2]
[360102799,1746550250223,-401.94674852,0.00019452,2]
[360102801,1746550250232,-400.0,0.00019452,2]
[360102803,1746550250242,-400.0,0.00019452,2]
[360102805,1746550250251,-400.0,0.00019452,2]
[360102807,1746550250260,-400.0,0.00019452,2]
[360102809,1746550250269,-917.94,0.00019452,2]
[360102811,1746550250278,-400.0,0.00019452,2]
[360102813,1746550250288,-400.0,0.00019452,2]
[360102815,1746550250298,-406.5313941,0.00019452,2]
[360102817,1746550250308,-400.0,0.00019452,2]
[360102819,1746550250317,-400.0,0.00019452,2]
[360102821,1746550250326,-400.0,0.00019452,2]
[360102823,1746550250336,-151.0,0.00019452,2]
[360102825,1746550250348,-400.0,0.00019452,2]
[360102827,1746550250357,-151.0,0.00019452,2]
[360102829,1746550250366,-403.72300293,0.00019452,2]
[360102831,1746550250375,-176.639,0.00019452,2]
[360102833,1746550250385,-400.0,0.00019452,2]
[360102835,1746550250394,-400.0,0.00019452,2]
[360102837,1746550250403,-404.73978031,0.00019452,2]
[360102839,1746550250413,-400.0,0.00019452,2]
[360102841,1746550250422,-407.394944,0.00019452,2]
[360102843,1746550250431,-400.0,0.00019452,2]
[360102845,1746550250440,-400.0,0.00019452,2]
[360102847,1746550250450,-400.0,0.00019452,2]
[360102849,1746550250460,-220.64867925,0.00019452,2]
[360102851,1746550250469,-400.0,0.00019452,2]
[360102853,1746550250480,-400.0,0.00019452,2]
[360102855,1746550250490,-400.0,0.00019452,2]
[360102857,1746550250500,-934.45,0.00019452,2]
[360102859,1746550250510,-233.76033808,0.00019452,2]
[360102861,1746550250520,-400.0,0.00019452,2]
[360102863,1746550250531,-163.4935406,0.00019452,2]
[360102865,1746550250540,-400.0,0.00019452,2]
[360102867,1746550250550,-998.0,0.00019452,2]
[360102869,1746550250560,-400.0,0.00019452,2]
[360102871,1746550250570,-401.61499065,0.00019452,2]
[360102873,1746550250580,-400.0,0.00019452,2]
[360102875,1746550250590,-1046.682964,0.00019452,2]
[360102877,1746550250604,-400.0,0.00019452,2]
[360102879,1746550250614,-400.0,0.00019452,2]
[360102881,1746550250623,-1046.682964,0.00019452,2]
[360102883,1746550250632,-402.30534856,0.00019452,2]
[360102885,1746550250641,-400.0,0.00019452,2]
[360102887,1746550250650,-403.16813055,0.00019452,2]
[360102889,1746550250659,-400.0,0.00019452,2]
[360102891,1746550250669,-400.0,0.00019452,2]
[360102893,1746550250678,-152.884301,0.00019452,2]
[360102895,1746550250687,-400.0,0.00019452,2]
[360102897,1746550250697,-405.2688485,0.00019452,2]
[360102899,1746550250706,-400.0,0.00019452,2]
[360102901,1746550250715,-400.0,0.00019452,2]
[360102903,1746550250724,-400.0,0.00019452,2]
[360102905,1746550250733,-481.53152116,0.00019452,2]
[360102907,1746550250743,-400.0,0.00019452,2]
[360102909,1746550250752,-400.0,0.00019452,2]
[360102911,1746550250761,-400.0,0.00019452,2]
[360102913,1746550250770,-557.65,0.00019452,2]
[360102915,1746550250779,-400.0,0.00019452,2]
[360102917,1746550250789,-400.0,0.00019452,2]
[360102919,1746550250803,-400.0,0.00019452,2]
[360102921,1746550250813,-400.0,0.00019452,2]
[360102923,1746550250823,-1052.77,0.00019452,2]
[360102925,1746550250832,-400.0,0.00019452,2]
[360102927,1746550250843,-309.69643883,0.00019452,2]
[360102929,1746550250855,-400.0,0.00019452,2]
[360102931,1746550250864,-400.0,0.00019452,2]
[360102934,1746550250873,-516.03,0.00019452,2]
[360102936,1746550250885,-400.0,0.00019452,2]
[360102937,1746550250894,-151.0,0.00019452,2]
[360102939,1746550250903,-151.0,0.00019452,2]
[360102941,1746550250913,-400.0,0.00019452,2]
[360102943,1746550250922,-151.0,0.00019452,2]
[360102945,1746550250932,-151.0,0.00019452,2]
[360102947,1746550250941,-582.88,0.00019452,2]
[360102950,1746550250951,-400.0,0.00019452,2]
[360102952,1746550250960,-671.69,0.00019452,2]
[360102954,1746550250970,-511.39966207,0.00019452,2]
[360102956,1746550250979,-400.0,0.00019452,2]
[360102958,1746550250994,-400.0,0.00019452,2]
[360102960,1746550251003,-400.0,0.00019452,2]
[360102962,1746550251012,-400.0,0.00019452,2]
[360102964,1746550251022,-1358.88,0.00019452,2]
[360102966,1746550251031,-400.0,0.00019452,2]
[360102968,1746550251040,-400.0,0.00019452,2]
[360102970,1746550251049,-500.0,0.00019452,2]
[360102972,1746550251058,-400.0,0.00019452,2]
[360102974,1746550251068,-463.5,0.00019452,2]
[360102976,1746550251077,-400.0,0.00019452,2]
[360102978,1746550251087,-400.0,0.00019452,2]
[360102980,1746550251096,-307.91332687,0.00019452,2]
[360102982,1746550251105,-400.0,0.00019452,2]
[360102984,1746550251114,-400.0,0.00019452,2]
[360102986,1746550251123,-400.0,0.00019452,2]
[360102988,1746550251136,-400.0,0.00019452,2]
[360102990,1746550251145,-204.21910831,0.00019452,2]
[360102992,1746550251155,-400.0,0.00019452,2]
[360102994,1746550251164,-400.0,0.00019452,2]
[360102996,1746550251173,-400.0,0.00019452,2]
[360102998,1746550251182,-1994.82,0.00019452,2]
[360103000,1746550251192,-400.0,0.00019452,2]
[360103002,1746550251202,-400.0,0.00019452,2]
[360103004,1746550251212,-400.0,0.00019452,2]
[360103006,1746550251222,-400.0,0.00019452,2]
[360103008,1746550251231,-400.0,0.00019452,2]
[360103009,1746550251241,-400.0,0.00019452,2]
[360103011,1746550251251,-1428.88,0.00019452,2]
[360103014,1746550251261,-400.0,0.00019452,2]
[360103015,1746550251271,-984.36,0.00019452,2]
[360103018,1746550251281,-400.0,0.00019452,2]
[360103020,1746550251290,-400.0,0.00019452,2]
[360103021,1746550251300,-585.31,0.00019452,2]
[360103023,1746550251310,-400.0,0.00019452,2]
[360103025,1746550251320,-400.0,0.00019452,2]
[360103027,1746550251329,-400.0,0.00019452,2]
[360103029,1746550251338,-625.03,0.00019452,2]
[360103031,1746550251352,-400.0,0.00019452,2]
[360103033,1746550251361,-204.85885003,0.00019452,2]
[360103035,1746550251370,-400.0,0.00019452,2]
[360103037,1746550251379,-400.0,0.00019452,2]
[360103039,1746550251389,-400.0,0.00019452,2]
[360103041,1746550251398,-400.0,0.00019452,2]
[360103043,1746550251407,-357.10086959,0.00019452,2]
[360103045,1746550251416,-844.65,0.00019452,2]
[360103047,1746550251426,-585.18,0.00019452,2]
[360103049,1746550251436,-400.0,0.00019452,2]
[360103051,1746550251446,-509.23200127,0.00019452,2]
[360103053,1746550251455,-505.72161325,0.00019452,2]
[360103055,1746550251465,-2938.9,0.00019452,2]
[360103057,1746550251474,-400.0,0.00019452,2]
[360103059,1746550251484,-400.0,0.00019452,2]
[360103061,1746550251493,-608.74,0.00019452,2]
[360103063,1746550251503,-401.28101685,0.00019452,2]
[360103065,1746550251512,-1026.77,0.00019452,2]
[360103067,1746550251521,-400.0,0.00019452,2]
[360103069,1746550251530,-642.63,0.00019452,2]
[360103071,1746550251539,-400.0,0.00019452,2]
[360103072,1746550251548,-400.0,0.00019452,2]
[360103074,1746550251558,-474.87,0.00019452,2]
[360103076,1746550251567,-400.0,0.00019452,2]
[360103078,1746550251577,-400.0,0.00019452,2]
[360103080,1746550251586,-400.0,0.00019452,2]
[360103082,1746550251597,-343.05919239,0.00019452,2]
[360103084,1746550251607,-437.22,0.00019452,2]
[360103085,1746550251616,-400.0,0.00019452,2]
[360103086,1746550251625,-400.0,0.00019452,2]
[360103087,1746550251635,-176.979047,0.00019452,2]
[360103088,1746550251644,-400.0,0.00019452,2]
[360103089,1746550251653,-176.979047,0.00019452,2]
[360103090,1746550251663,-400.0,0.00019452,2]
[360103091,1746550251672,-400.0,0.00019452,2]
[360103092,1746550251682,-400.0,0.00019452,2]
[360103093,1746550251691,-400.0,0.00019452,2]
[360103094,1746550251701,-1877.288413,0.00019452,2]
[360103095,1746550251711,-400.0,0.00019452,2]
[360103096,1746550251721,-1877.288413,0.00019452,2]
[360103097,1746550251730,-400.0,0.00019452,2]
[360103098,1746550251740,-400.0,0.00019452,2]
[360103099,1746550251750,-400.0,0.00019452,2]
[360103100,1746550251759,-317.15975652,0.00019452,2]
[360103106,1746550251879,-400.0,0.00019452,2]
[360103108,1746550251890,-1877.288413,0.00019452,2]
[360103110,1746550251899,-1877.288413,0.00019452,2]
[360103112,1746550251909,-400.0,0.00019452,2]
[360103114,1746550251918,-407.5,0.00019452,2]
[360103116,1746550251928,-400.0,0.00019452,2]
[360103118,1746550251937,-400.0,0.00019452,2]
[360103120,1746550251947,-400.0,0.00019452,2]
[360103121,1746550251956,-265.031267,0.00019452,2]
[360103123,1746550251966,-400.0,0.00019452,2]
[360103125,1746550251976,-400.0,0.00019452,2]
[360103127,1746550251986,-1732.06,0.00019452,2]
[360103129,1746550251995,-400.0,0.00019452,2]
[360103131,1746550252005,-265.031267,0.00019452,2]
[360103132,1746550252015,-510.75279138,0.00019452,2]
[360103133,1746550252025,-898.37,0.00019452,2]
[360103134,1746550252034,-400.0,0.00019452,2]
[360103135,1746550252043,-400.0,0.00019452,2]
[360103136,1746550252053,-400.0,0.00019452,2]
[360103137,1746550252062,-400.0,0.00019452,2]
[360103138,1746550252071,-400.0,0.00019452,2]
[360103139,1746550252080,-400.0,0.00019452,2]
[360103140,1746550252089,-400.0,0.00019452,2]
[360103141,1746550252100,-400.0,0.00019452,2]
[360103142,1746550252110,-400.0,0.00019452,2]
[360103143,1746550252119,-400.0,0.00019452,2]
[360103144,1746550252128,-1095.13,0.00019452,2]
[360103145,1746550252137,-400.0,0.00019452,2]
[360103146,1746550252147,-428.54,0.00019452,2]
[360103147,1746550252157,-417.89,0.00019452,2]
[360103148,1746550252167,-400.0,0.00019452,2]
[360103150,1746550252176,-504.16376864,0.00019452,2]
[360103151,1746550252185,-400.0,0.00019452,2]
[360103153,1746550252195,-400.0,0.00019452,2]
[360103155,1746550252204,-400.0,0.00019452,2]
[360103157,1746550252214,-400.0,0.00019452,2]
[360103159,1746550252223,-458.42,0.00019452,2]
[360103161,1746550252232,-400.0,0.00019452,2]
[360103162,1746550252241,-5262.57,0.00019452,2]
[360103164,1746550252250,-400.0,0.00019452,2]
[360103166,1746550252260,-400.0,0.00019452,2]
[360103167,1746550252269,-1308.2,0.00019452,2]
[360103168,1746550252278,-400.0,0.00019452,2]
[360103169,1746550252288,-400.0,0.00019452,2]
[360103170,1746550252297,-400.0,0.00019452,2]
[360103171,1746550252306,-400.0,0.00019452,2]
[360103172,1746550252316,-400.0,0.00019452,2]
[360103173,1746550252325,-1379.79,0.00019452,2]
[360103174,1746550252334,-3412.15,0.00019452,2]
[360103175,1746550252346,-758.88,0.00019452,2]
[360103176,1746550252355,-400.0,0.00019452,2]
[360103177,1746550252366,-400.0,0.00019452,2]
[360103178,1746550252375,-400.0,0.00019452,2]
[360103179,1746550252385,-400.0,0.00019452,2]
[360103180,1746550252394,-867.45,0.00019452,2]
[360103181,1746550252403,-1172.28,0.00019452,2]
[360103182,1746550252414,-400.0,0.00019452,2]
[360103183,1746550252423,-400.0,0.00019452,2]
[360103184,1746550252433,-400.0,0.00019452,2]
[360103185,1746550252442,-296.88359585,0.00019452,2]
[360103186,1746550252452,-400.0,0.00019452,2]
[360103187,1746550252461,-613.43,0.00019452,2]
[360103188,1746550252472,-512.42057002,0.00019452,2]
[360103190,1746550252481,-400.0,0.00019452,2]
[360103192,1746550252490,-1734.58,0.00019452,2]
[360103194,1746550252501,-400.0,0.00019452,2]
[360103196,1746550252510,-469.63,0.00019452,2]
[360103198,1746550252519,-227.75999,0.00019452,2]
[360103200,1746550252529,-400.0,0.00019452,2]
[360103202,1746550252539,-227.75999,0.00019452,2]
[360103204,1746550252548,-400.0,0.00019452,2]
[360103206,1746550252558,-400.0,0.00019452,2]
[360103208,1746550252567,-510.74,0.00019452,2]
[360103210,1746550252577,-400.0,0.00019452,2]
[360103212,1746550252586,-227.75999,0.00019452,2]
[360103214,1746550252596,-227.75999,0.00019452,2]
[360103216,1746550252605,-358.0,0.00019452,2]
[360103218,1746550252614,-1000.0,0.00019452,2]
[360103220,1746550252623,-400.0,0.00019452,2]
[360103222,1746550252632,-400.0,0.00019452,2]
[360103224,1746550252642,-400.0,0.00019452,2]
[360103225,1746550252651,-400.0,0.00019452,2]
[360103227,1746550252661,-405.48311805,0.00019452,2]
[360103228,1746550252670,-500.0,0.00019452,2]
[360103229,1746550252680,-400.0,0.00019452,2]
[360103231,1746550252689,-784.26,0.00019452,2]
[360103233,1746550252698,-1684.37,0.00019452,2]
[360103235,1746550252707,-400.0,0.00019452,2]
[360103237,1746550252717,-565.81,0.00019452,2]
[360103239,1746550252726,-400.0,0.00019452,2]
[360103241,1746550252736,-400.0,0.00019452,2]
[360103243,1746550252745,-151.0,0.00019452,2]
[360103245,1746550252754,-151.0,0.00019452,2]
[360103247,1746550252764,-400.0,0.00019452,2]
[360103249,1746550252773,-5870.74,0.00019452,2]
[360103251,1746550252783,-507.8850277,0.00019452,2]
[360103253,1746550252792,-400.0,0.00019452,2]
[360103255,1746550252805,-401.8274264,0.00019452,2]
[360103257,1746550252815,-405.99455463,0.00019452,2]
[360103259,1746550252825,-895.02,0.00019452,2]
[360103261,1746550252835,-400.0,0.00019452,2]
[360103263,1746550252845,-400.0,0.00019452,2]
[360103265,1746550252854,-400.0,0.00019452,2]
[360103266,1746550252864,-400.0,0.00019452,2]
[360103268,1746550252875,-400.0,0.00019452,2]
[360103269,1746550252885,-400.0,0.00019452,2]
[360103270,1746550252895,-400.0,0.00019452,2]
[360103271,1746550252904,-400.0,0.00019452,2]
[360103272,1746550252914,-400.0,0.00019452,2]
[360103273,1746550252924,-400.0,0.00019452,2]
[360103274,1746550252933,-151.0,0.00019452,2]
[360103275,1746550252943,-151.0,0.00019452,2]
[360103276,1746550252953,-400.0,0.00019452,2]
[360103277,1746550252963,-400.0,0.00019452,2]
[360103278,1746550252973,-400.0,0.00019452,2]
[360103279,1746550252983,-400.0,0.00019452,2]
[360103280,1746550252992,-400.0,0.00019452,2]
[360103281,1746550253002,-326.10167798,0.00019452,2]
[360103282,1746550253012,-460.53,0.00019452,2]
[360103283,1746550253022,-400.8255333,0.00019452,2]
[360103284,1746550253031,-400.0,0.00019452,2]
[360103285,1746550253041,-400.0,0.00019452,2]
[360103286,1746550253050,-400.0,0.00019452,2]
[360103287,1746550253060,-400.0,0.00019452,2]
[360103288,1746550253069,-400.0,0.00019452,2]
[360103289,1746550253079,-400.0,0.00019452,2]
[360103290,1746550253089,-400.0,0.00019452,2]
[360103291,1746550253099,-406.16086678,0.00019452,2]
[360103292,1746550253109,-400.0,0.00019452,2]
[360103293,1746550253119,-400.0,0.00019452,2]
[360103294,1746550253129,-212.45092939,0.00019452,2]
[360103296,1746550253138,-400.0,0.00019452,2]
[360103298,1746550253147,-400.0,0.00019452,2]
[360103300,1746550253156,-1671.52,0.00019452,2]
[360103302,1746550253166,-400.0,0.00019452,2]
[360103304,1746550253176,-400.0,0.00019452,2]
[360103306,1746550253185,-400.0,0.00019452,2]
[360103308,1746550253194,-404.06834625,0.00019452,2]
[360103309,1746550253203,-563.37,0.00019452,2]
[360103311,1746550253213,-400.0,0.00019452,2]
[360103313,1746550253222,-400.0,0.00019452,2]
[360103315,1746550253231,-451.51,0.00019452,2]
[360103317,1746550253240,-840.75,0.00019452,2]
[360103319,1746550253250,-400.0,0.00019452,2]
[360103321,1746550253258,-400.0,0.00019452,2]
[360103323,1746550253268,-400.0,0.00019452,2]
[360103325,1746550253277,-174.646678,0.00019452,2]
[360103327,1746550253286,-400.0,0.00019452,2]
[360103329,1746550253295,-174.646678,0.00019452,2]
[360103331,1746550253304,-400.0,0.00019452,2]
[360103333,1746550253313,-400.0,0.00019452,2]
[360103335,1746550253322,-401.72877858,0.00019452,2]
[360103337,1746550253331,-400.0,0.00019452,2]
[360103339,1746550253340,-174.646678,0.00019452,2]
[360103341,1746550253351,-400.0,0.00019452,2]
[360103343,1746550253361,-400.0,0.00019452,2]
[360103345,1746550253370,-151.0,0.00019452,2]
[360103347,1746550253379,-779.44,0.00019452,2]
[360103349,1746550253389,-174.646678,0.00019452,2]
[360103351,1746550253398,-151.0,0.00019452,2]
[360103353,1746550253408,-518.87988151,0.00019452,2]
[360103355,1746550253417,-151.0,0.00019452,2]
[360103357,1746550253427,-400.0,0.00019452,2]
[360103359,1746550253436,-407.00011108,0.00019452,2]
[360103361,1746550253445,-400.0,0.00019452,2]
[360103363,1746550253454,-518.61,0.00019452,2]
[360103365,1746550253463,-400.0,0.00019452,2]
[360103377,1746550253568,-400.0,0.00019452,2]
[360103380,1746550253578,-1515.05,0.00019452,2]
[360103381,1746550253587,-506.97744387,0.00019452,2]
[360103384,1746550253598,-400.0,0.00019452,2]
[360103386,1746550253607,-400.0,0.00019452,2]
[360103388,1746550253616,-400.0,0.00019452,2]
[360103390,1746550253625,-400.0,0.00019452,2]